fUST/lending_fUST_20250226
["ID","MTS","AMOUNT","RATE_DAILY","PERIOD"]
[354533698,1740558720108,-734.51,0.00041907,2]
[354533699,1740558720117,-524.41,0.00041907,2]
[354533700,1740558720127,-926.84,0.00041907,2]
[354533701,1740558720136,-500.0,0.00041907,2]
[354533702,1740558720145,-7891.32,0.00041907,2]
[354533703,1740558720155,-500.0,0.00041907,2]
[354533704,1740558720166,-4684.26,0.00041907,2]
[354533705,1740558720176,-871.57,0.00041907,2]
[354533706,1740558720185,-500.0,0.00041907,2]
[354533707,1740558720195,-978.51,0.00041907,2]
[354533708,1740558720204,-500.0,0.00041907,2]
[354533709,1740558720215,-500.0,0.00041907,2]
[354533710,1740558720228,-636.88,0.00041907,2]
[354533711,1740558720239,-503.4477931,0.00041907,2]
[354533712,1740558720249,-680.1,0.00041907,2]
[354533713,1740558720258,-500.0,0.00041907,2]
[354533714,1740558720268,-500.0,0.00041907,2]
[354533715,1740558720277,-775.53,0.00041907,2]
[354533716,1740558720292,-500.0,0.00041907,2]
[354533717,1740558720302,-500.0,0.00041907,2]
[354533718,1740558720311,-604.16,0.00041907,2]
[354533719,1740558720321,-500.0,0.00041907,2]
[354533720,1740558720333,-542.14,0.00041907,2]
[354533721,1740558720344,-500.0,0.00041907,2]
[354533722,1740558720354,-500.0,0.00041916,2]
[354533723,1740558720365,-554.44,0.00041916,2]
[354533724,1740558720375,-500.0,0.00041916,60]
[354533725,1740558720384,-717.11,0.00041916,2]
[354533726,1740558720395,-500.0,0.00041916,2]
[354533727,1740558720403,-500.0,0.00041916,2]
[354533728,1740558720415,-300.0,0.00041916,120]
[354533729,1740558720426,-500.00000401,0.00041916,2]
[354533730,1740558720436,-500.0,0.00041916,2]
[354533731,1740558720446,-639.26,0.00041916,2]
[354533732,1740558720456,-500.0,0.00041916,2]
[354533733,1740558720465,-500.0,0.00041916,2]
[354533734,1740558720475,-500.0,0.00041916,2]
[354533735,1740558720486,-500.0,0.00041916,2]
[354533736,1740558720495,-586.05,0.00041916,2]
[354533737,1740558720505,-500.0,0.00041916,2]
[354533738,1740558720515,-561.33,0.00041916,2]
[354533739,1740558720526,-500.0,0.00041916,2]
[354533740,1740558720536,-565.23,0.00041916,2]
[354533741,1740558720545,-528.37,0.00041916,2]
[354533742,1740558720555,-613.55,0.00041916,2]
[354533743,1740558720565,-648.85,0.00041916,2]
[354533744,1740558720574,-500.0,0.00041916,2]
[354533745,1740558720584,-500.0,0.00041916,2]
[354533746,1740558720594,-569.12,0.00041916,2]
[354533747,1740558720604,-500.0,0.00041916,2]
[354533748,1740558720614,-500.0,0.00041916,2]
[354533749,1740558720623,-819.68,0.00041916,2]
[354533750,1740558720633,-293.03795943,0.00041916,2]
[354533751,1740558720643,-690.47,0.00041916,2]
[354533752,1740558720652,-564.17,0.00041916,2]
[354533753,1740558720664,-681.33,0.00041916,2]
[354533754,1740558720674,-1375.0,0.00041917,2]
[354533755,1740558720684,-500.0,0.00041917,2]
[354533756,1740558720693,-500.0,0.00041917,2]
[354533757,1740558720703,-787.39,0.00041917,2]
[354533758,1740558720712,-500.0,0.00041917,2]
[354533759,1740558720723,-500.0,0.00041917,2]
[354533760,1740558720733,-683.71,0.00041917,2]
[354533761,1740558720742,-500.0,0.00041917,2]
[354533762,1740558720752,-500.0,0.00041917,2]
[354533763,1740558720762,-569.11,0.00041917,2]
[354533764,1740558720773,-500.0,0.00041917,2]
[354533765,1740558720783,-500.0,0.00041917,2]
[354533766,1740558720794,-500.0,0.00041917,2]
[354533767,1740558720803,-500.0,0.00041917,2]
[354533768,1740558720813,-500.0,0.00041917,2]
[354533769,1740558720823,-500.0,0.00041917,2]
[354533770,1740558720833,-426.40103509,0.00041917,2]
[354533771,1740558720843,-512.7,0.00041917,2]
[354533772,1740558720853,-517.91,0.00041917,2]
[354533773,1740558720862,-500.0,0.00041917,2]
[354533774,1740558720872,-562.39,0.00041917,2]
[354533775,1740558720882,-578.94,0.00041917,2]
[354533776,1740558720891,-859.52,0.00041917,2]
[354533777,1740558720901,-500.0,0.00041917,2]
[354533778,1740558720913,-703.42,0.00041917,2]
[354533779,1740558720923,-500.0,0.00041917,2]
[354533780,1740558720932,-500.0,0.00041917,2]
[354533781,1740558720942,-500.0,0.00041917,2]
[354533782,1740558720951,-500.0,0.00041917,2]
[354533783,1740558720961,-500.0,0.00041917,2]
[354533784,1740558720971,-500.0,0.00041917,2]
[354533785,1740558720981,-667.32,0.00041917,2]
[354533786,1740558720990,-616.8,0.00041917,2]
[354533787,1740558721000,-661.5,0.00041917,2]
[354533788,1740558721010,-510.79,0.00041917,2]
[354533789,1740558721019,-500.0,0.00041917,2]
[354533790,1740558721029,-802.93,0.00041917,2]
[354533791,1740558721039,-534.20331497,0.00041917,2]
[354533792,1740558721048,-500.0,0.00041917,2]
[354533793,1740558721058,-500.0,0.00041917,2]
[354533794,1740558721067,-500.0,0.00041917,2]
[354533795,1740558721076,-500.0,0.00041917,2]
[354533796,1740558721086,-569.52,0.00041917,2]
[354533797,1740558721101,-500.0,0.00041917,2]
[354533798,1740558721111,-500.0,0.00041917,2]
[354533799,1740558721120,-503.18945318,0.00041917,2]
[354533800,1740558721130,-724.07,0.00041917,2]
[354533801,1740558721139,-500.44,0.00041917,2]
[354533802,1740558721149,-501.54074589,0.00041917,2]
[354533803,1740558721158,-512.90152692,0.00041917,2]
[354533804,1740558721169,-424.42217426,0.00041917,2]
[354533805,1740558721179,-614.77474398,0.00041917,2]
[354533806,1740558721189,-422.75230175,0.00041917,2]
[354533807,1740558721199,-624.85823418,0.00041917,2]
[354533808,1740558721208,-589.18011541,0.00041917,2]
[354533809,1740558721218,-889.73806496,0.00041917,2]
[354533810,1740558721228,-1136.42,0.00041917,2]
[354533811,1740558721238,-1804.88419205,0.00041917,2]
[354533812,1740558721247,-1934.61,0.00041917,2]
[354533813,1740558721257,-1190.11,0.00041917,2]
[354533814,1740558721266,-791.41,0.00041917,2]
[354533815,1740558721276,-2633.90140017,0.00041917,2]
[354533816,1740558721286,-535.47487563,0.00041917,2]
[354533817,1740558721300,-1419.4,0.00041917,2]
[354533818,1740558721310,-770.88913004,0.00041917,2]
[354533819,1740558721319,-1556.34,0.00041917,2]
[354533820,1740558721331,-1936.09,0.00041917,2]
[354533821,1740558721340,-700.5786877,0.00041917,2]
[354533822,1740558721350,-1160.21,0.00041917,2]
[354533823,1740558721359,-911.11110581,0.00041917,2]
[354533824,1740558721373,-728.98,0.00041917,2]
[354533825,1740558721384,-1160.45,0.00041917,2]
[354533826,1740558721394,-2716.92,0.00041917,2]
[354533827,1740558721404,-1164.04,0.00041917,2]
[354533828,1740558721417,-962.5,0.00041917,2]
[354533829,1740558721427,-583.41,0.00041917,2]
[354533830,1740558721437,-679.73,0.00041917,2]
[354533831,1740558721447,-583.41,0.00041917,2]
[354533832,1740558721458,-626.815579,0.00041917,2]
[354533833,1740558721468,-5271.87,0.00041917,2]
[354533834,1740558721478,-518.26619168,0.00041917,2]
[354533835,1740558721488,-2041.52,0.00041917,2]
[354533836,1740558721497,-500.0,0.00041921,112]
[354533837,1740558721507,-1000.0,0.00041965,10]
[354533838,1740558721517,-1000.0,0.00041965,10]
[354533839,1740558721526,-1000.0,0.00041965,10]
[354533840,1740558721536,-1000.0,0.00041965,10]
[354533841,1740558721545,-1000.0,0.00041965,10]
[354533842,1740558721555,-1000.0,0.00041965,10]
[354533843,1740558721564,-1000.0,0.00041965,10]
[354533844,1740558721574,-837.37,0.00041966,2]
[354533845,1740558721583,-467.69491959,0.00041966,2]
[354533846,1740558721593,-1223.33,0.00041966,2]
[354533847,1740558721603,-500.0,0.00041966,2]
[354533848,1740558721612,-746.59,0.00041966,2]
[354533849,1740558721622,-996.86,0.00041966,2]
[354533850,1740558721631,-649.16,0.00041966,2]
[354533851,1740558721641,-500.0,0.00041966,2]
[354533852,1740558721651,-809.19,0.00041966,2]
[354533853,1740558721659,-500.0,0.00041966,2]
[354533854,1740558721669,-807.31,0.00041966,2]
[354533855,1740558721678,-551.31,0.00041966,2]
[354533856,1740558721689,-500.0,0.00041966,2]
[354533857,1740558721699,-1093.48,0.00041966,2]
[354533858,1740558721709,-923.19,0.00041966,2]
[354533859,1740558721719,-937.3,0.00041966,2]
[354533860,1740558721729,-500.0,0.00041966,2]
[354533861,1740558721738,-731.22,0.00041966,2]
[354533862,1740558721748,-836.16,0.00041966,2]
[354533863,1740558721757,-1435.65,0.00041966,2]
[354533864,1740558721767,-1482.81,0.00041966,2]
[354533865,1740558721777,-745.96,0.00041966,2]
[354533866,1740558721787,-1248.13,0.00041966,2]
[354533867,1740558721797,-631.6,0.00041966,2]
[354533868,1740558721807,-691.31,0.00041966,2]
[354533869,1740558721819,-1944.22,0.00041966,2]
[354533870,1740558721831,-934.6,0.00041966,2]
[354533871,1740558721842,-729.0,0.00041966,2]
[354533872,1740558721853,-936.38,0.00041966,2]
[354533873,1740558721863,-683.43,0.00041966,2]
[354533874,1740558721874,-844.03,0.00041966,2]
[354533875,1740558721883,-571.6,0.00041966,2]
[354533876,1740558721893,-876.55,0.00041966,2]
[354533877,1740558721902,-519.21,0.00041966,2]
[354533878,1740558721911,-500.0,0.00041966,2]
[354533879,1740558721921,-884.18,0.00041966,2]
[354533880,1740558721931,-763.01,0.00041966,2]
[354533881,1740558721940,-635.38,0.00041966,2]
[354533882,1740558721951,-349.06194955,0.00041966,2]
[354533883,1740558721961,-500.0,0.00041966,2]
[354533884,1740558721971,-5538.76,0.00041966,2]
[354533885,1740558721980,-784.71,0.00041966,2]
[354533886,1740558721990,-751.07,0.00041966,2]
[354533887,1740558722000,-511.78,0.00041966,2]
[354533888,1740558722010,-642.18,0.00041966,2]
[354533889,1740558722021,-500.0,0.00041966,2]
[354533890,1740558722031,-674.65,0.00041966,2]
[354533891,1740558722040,-726.46,0.00041966,2]
[354533892,1740558722051,-745.5,0.00041966,2]
[354533893,1740558722061,-500.0,0.00041966,2]
[354533894,1740558722071,-503.2,0.00041966,2]
[354533895,1740558722081,-500.0,0.00041966,2]
[354533896,1740558722091,-1000.0,0.00041966,10]
[354533897,1740558722102,-235.57027522,0.00041966,10]
[354533898,1740558722112,-1000.0,0.00041985,10]
[354533899,1740558722122,-1000.0,0.00041985,7]
[354533900,1740558722131,-1000.0,0.00041985,10]
[354533901,1740558722141,-500.0,0.00042021,97]
[354533902,1740558722151,-500.0,0.00042181,2]
[354533903,1740558722162,-500.0,0.00042181,2]
[354533904,1740558722172,-500.0,0.00042181,2]
[354533905,1740558722182,-785.72,0.00042181,2]
[354533906,1740558722193,-500.0,0.00042181,2]
[354533907,1740558722203,-500.0,0.00042181,2]
[354533908,1740558722213,-500.0,0.00042181,2]
[354533909,1740558722223,-500.0,0.00042181,2]
[354533910,1740558722379,-500.0,0.00042181,2]
[354533911,1740558722389,-500.0,0.00042181,2]
[354533912,1740558722399,-930.16,0.00042181,2]
[354533913,1740558722409,-450.46381748,0.00042181,2]
[354533914,1740558722420,-639.3,0.00042181,2]
[354533915,1740558722429,-641.45,0.00042181,2]
[354533916,1740558722439,-500.0,0.00042181,2]
[354533917,1740558722449,-626.59,0.00042181,2]
[354533918,1740558722460,-462.58185592,0.00042181,2]
[354533919,1740558722469,-500.0,0.00042181,2]
[354533920,1740558722480,-500.0,0.00042181,2]
[354533921,1740558722490,-500.0,0.00042181,2]
[354533922,1740558722500,-500.0,0.00042181,2]
[354533923,1740558722510,-500.0,0.00042181,2]
[354533924,1740558722520,-500.0,0.00042181,2]
[354533925,1740558722530,-656.28,0.00042181,2]
[354533926,1740558722541,-500.0,0.00042181,2]
[354533927,1740558722550,-500.0,0.00042181,2]
[354533928,1740558722560,-689.21,0.00042181,2]
[354533929,1740558722570,-785.33,0.00042181,2]
[354533930,1740558722580,-500.0,0.00042181,2]
[354533931,1740558722590,-734.51,0.00042181,2]
[354533932,1740558722599,-524.41,0.00042181,2]
[354533933,1740558722609,-926.84,0.00042181,2]
[354533934,1740558722619,-500.0,0.00042181,2]
[354533935,1740558722628,-7891.32,0.00042181,2]
[354533936,1740558722638,-500.0,0.00042181,2]
[354533937,1740558722648,-4684.26,0.00042181,2]
[354533938,1740558722657,-871.57,0.00042181,2]
[354533939,1740558722668,-500.0,0.00042181,2]
[354533940,1740558722678,-978.51,0.00042181,2]
[354533941,1740558722688,-343.17,0.00042181,2]
[354533942,1740558722699,-418.23330643,0.00042181,2]
[354533943,1740558722709,-636.88,0.00042181,2]
[354533944,1740558722718,-680.1,0.00042181,2]
[354533945,1740558722728,-500.0,0.00042181,2]
[354533946,1740558722737,-500.0,0.00042181,2]
[354533947,1740558722747,-775.53,0.00042181,2]
[354533948,1740558722758,-500.0,0.00042181,2]
[354533949,1740558722768,-500.0,0.00042181,2]
[354533950,1740558722778,-604.16,0.00042181,2]
[354533951,1740558722789,-500.0,0.00042181,2]
[354533952,1740558722799,-542.14,0.00042181,2]
[354533953,1740558722810,-500.0,0.00042181,2]
[354533954,1740558722819,-500.0,0.0004219,2]
[354533955,1740558722829,-554.44,0.0004219,2]
[354533956,1740558722839,-500.0,0.0004219,60]
[354533957,1740558722849,-717.11,0.0004219,2]
[354533958,1740558722858,-500.0,0.0004219,2]
[354533959,1740558722868,-500.0,0.0004219,2]
[354533960,1740558722878,-300.0,0.0004219,120]
[354533961,1740558722887,-500.0,0.0004219,2]
[354533962,1740558722897,-639.26,0.0004219,2]
[354533963,1740558722907,-500.0,0.0004219,2]
[354533964,1740558722919,-500.0,0.0004219,2]
[354533965,1740558722929,-500.0,0.0004219,2]
[354533966,1740558722940,-500.0,0.0004219,2]
[354533967,1740558722949,-586.05,0.0004219,2]
[354533968,1740558722959,-500.0,0.0004219,2]
[354533969,1740558722968,-561.33,0.0004219,2]
[354533970,1740558722979,-500.0,0.0004219,2]
[354533971,1740558722989,-565.23,0.0004219,2]
[354533972,1740558722998,-528.37,0.0004219,2]
[354533973,1740558723008,-613.55,0.0004219,2]
[354533974,1740558723018,-648.85,0.0004219,2]
[354533975,1740558723027,-500.0,0.0004219,2]
[354533976,1740558723038,-500.0,0.0004219,2]
[354533977,1740558723049,-569.12,0.0004219,2]
[354533978,1740558723060,-500.0,0.0004219,2]
[354533979,1740558723070,-500.0,0.0004219,2]
[354533980,1740558723080,-819.68,0.0004219,2]
[354533981,1740558723091,-690.47,0.0004219,2]
[354533982,1740558723101,-564.17,0.0004219,2]
[354533983,1740558723112,-681.33,0.0004219,2]
[354533984,1740558723121,-1375.0,0.00042191,2]
[354533985,1740558723132,-500.0,0.00042191,2]
[354533986,1740558723141,-500.0,0.00042191,2]
[354533987,1740558723151,-787.39,0.00042191,2]
[354533988,1740558723160,-500.0,0.00042191,2]
[354533989,1740558723172,-500.0,0.00042191,2]
[354533990,1740558723182,-683.71,0.00042191,2]
[354533991,1740558723192,-500.0,0.00042191,2]
[354533992,1740558723202,-500.0,0.00042191,2]
[354533993,1740558723212,-569.11,0.00042191,2]
[354533994,1740558723222,-500.0,0.00042191,2]
[354533995,1740558723232,-500.0,0.00042191,2]
[354533996,1740558723242,-500.0,0.00042191,2]
[354533997,1740558723252,-500.0,0.00042191,2]
[354533998,1740558723262,-500.0,0.00042191,2]
[354533999,1740558723272,-500.0,0.00042191,2]
[354534000,1740558723284,-512.7,0.00042191,2]
[354534001,1740558723296,-500.0,0.00042191,2]
[354534002,1740558723306,-562.39,0.00042191,2]
[354534003,1740558723317,-578.94,0.00042191,2]
[354534004,1740558723327,-859.52,0.00042191,2]
[354534005,1740558723338,-500.0,0.00042191,2]
[354534006,1740558723348,-703.42,0.00042191,2]
[354534007,1740558723359,-500.0,0.00042191,2]
[354534008,1740558723372,-500.0,0.00042191,2]
[354534009,1740558723391,-500.0,0.00042191,2]
[354534010,1740558723409,-500.0,0.00042191,2]
[354534011,1740558723422,-500.0,0.00042191,2]
[354534012,1740558723432,-500.0,0.00042191,2]
[354534013,1740558723443,-667.32,0.00042191,2]
[354534014,1740558723453,-616.8,0.00042191,2]
[354534015,1740558723464,-661.5,0.00042191,2]
[354534016,1740558723474,-510.79,0.00042191,2]
[354534017,1740558723485,-215.61185934,0.00042191,2]
[354534018,1740558723495,-802.93,0.00042191,2]
[354534019,1740558723506,-500.0,0.00042191,2]
[354534020,1740558723516,-500.0,0.00042191,2]
[354534021,1740558723526,-475.96385082,0.00042191,2]
[354534022,1740558723536,-500.0,0.00042191,2]
[354534023,1740558723546,-569.52,0.00042191,2]
[354534024,1740558723555,-550.99345741,0.00042191,2]
[354534025,1740558723565,-500.0,0.00042191,2]
[354534026,1740558723575,-1934.68,0.00042191,2]
[354534027,1740558723586,-791.47476823,0.00042191,2]
[354534028,1740558723597,-1419.59178593,0.00042191,2]
[354534029,1740558723607,-1936.11681462,0.00042191,2]
[354534030,1740558723619,-1160.34,0.00042191,2]
[354534031,1740558723630,-728.9805453,0.00042191,2]
[354534032,1740558723641,-2716.97622818,0.00042191,2]
[354534033,1740558723651,-1164.18,0.00042191,2]
[354534034,1740558723662,-962.52,0.00042191,2]
[354534035,1740558723672,-679.91,0.00042191,2]
[354534036,1740558723684,-5272.03968645,0.00042191,2]
[354534037,1740558723693,-2041.71,0.00042191,2]
[354534038,1740558723703,-837.37,0.0004224,2]
[354534039,1740558723713,-1223.33,0.0004224,2]
[354534040,1740558723724,-500.0,0.0004224,2]
[354534041,1740558723734,-746.59,0.0004224,2]
[354534042,1740558723744,-996.86,0.0004224,2]
[354534043,1740558723754,-649.16,0.0004224,2]
[354534044,1740558723764,-500.0,0.0004224,2]
[354534045,1740558723775,-809.19,0.0004224,2]
[354534046,1740558723785,-500.0,0.0004224,2]
[354534047,1740558723795,-807.31,0.0004224,2]
[354534048,1740558723805,-551.31,0.0004224,2]
[354534049,1740558723816,-500.0,0.0004224,2]
[354534050,1740558723825,-1093.48,0.0004224,2]
[354534051,1740558723836,-923.19,0.0004224,2]
[354534052,1740558723845,-937.3,0.0004224,2]
[354534053,1740558723855,-500.0,0.0004224,2]
[354534054,1740558723864,-731.22,0.0004224,2]
[354534055,1740558723874,-836.16,0.0004224,2]
[354534056,1740558723884,-1435.65,0.0004224,2]
[354534057,1740558723893,-1482.81,0.0004224,2]
[354534058,1740558723904,-745.96,0.0004224,2]
[354534059,1740558723915,-1248.13,0.0004224,2]
[354534060,1740558723925,-631.6,0.0004224,2]
[354534061,1740558723935,-691.31,0.0004224,2]
[354534062,1740558723945,-1944.22,0.0004224,2]
[354534063,1740558723955,-934.6,0.0004224,2]
[354534064,1740558723965,-729.0,0.0004224,2]
[354534065,1740558723975,-936.38,0.0004224,2]
[354534066,1740558723985,-683.43,0.0004224,2]
[354534067,1740558723994,-844.03,0.0004224,2]
[354534068,1740558724003,-571.6,0.0004224,2]
[354534069,1740558724014,-876.55,0.0004224,2]
[354534070,1740558724024,-519.21,0.0004224,2]
[354534071,1740558724033,-500.0,0.0004224,2]
[354534072,1740558724043,-884.18,0.0004224,2]
[354534073,1740558724053,-763.01,0.0004224,2]
[354534074,1740558724063,-635.38,0.0004224,2]
[354534075,1740558724072,-500.0,0.0004224,2]
[354534076,1740558724082,-5538.76,0.0004224,2]
[354534077,1740558724091,-784.71,0.0004224,2]
[354534078,1740558724101,-751.07,0.0004224,2]
[354534079,1740558724111,-511.78,0.0004224,2]
[354534080,1740558724121,-642.18,0.0004224,2]
[354534081,1740558724131,-500.0,0.0004224,2]
[354534082,1740558724141,-674.65,0.0004224,2]
[354534083,1740558724151,-726.46,0.0004224,2]
[354534084,1740558724161,-745.5,0.0004224,2]
[354534085,1740558724176,-500.0,0.0004224,2]
[354534086,1740558724187,-503.2,0.0004224,2]
[354534087,1740558724198,-500.0,0.0004224,2]
[354534088,1740558724208,-500.0,0.00042321,42]
[354534089,1740558724218,-500.0,0.00042421,48]
[354534090,1740558724229,-500.0,0.00042455,2]
[354534091,1740558724239,-500.0,0.00042455,2]
[354534092,1740558724249,-500.0,0.00042455,2]
[354534093,1740558724259,-785.72,0.00042455,2]
[354534094,1740558724271,-500.0,0.00042455,2]
[354534095,1740558724282,-500.0,0.00042455,2]
[354534096,1740558724298,-366.53370485,0.00042455,2]
[354534097,1740558724308,-500.0,0.00042455,2]
[354534098,1740558724318,-500.0,0.00042455,2]
[354534099,1740558724328,-500.0,0.00042455,2]
[354534100,1740558724338,-930.16,0.00042455,2]
[354534101,1740558724348,-639.3,0.00042455,2]
[354534102,1740558724358,-641.45,0.00042455,2]
[354534103,1740558724367,-500.0,0.00042455,2]
[354534104,1740558724377,-626.59,0.00042455,2]
[354534105,1740558724386,-500.0,0.00042455,2]
[354534106,1740558724397,-500.0,0.00042455,2]
[354534107,1740558724407,-500.0,0.00042455,2]
[354534108,1740558724418,-403.94515498,0.00042455,2]
[354534109,1740558724428,-500.0,0.00042455,2]
[354534110,1740558724439,-500.0,0.00042455,2]
[354534111,1740558724448,-656.28,0.00042455,2]
[354534112,1740558724458,-500.0,0.00042455,2]
[354534113,1740558724468,-500.0,0.00042455,2]
[354534114,1740558724479,-689.21,0.00042455,2]
[354534115,1740558724488,-785.33,0.00042455,2]
[354534116,1740558724498,-500.0,0.00042455,2]
[354534117,1740558724508,-734.51,0.00042455,2]
[354534118,1740558724517,-524.41,0.00042455,2]
[354534119,1740558724527,-926.84,0.00042455,2]
[354534120,1740558724536,-500.0,0.00042455,2]
[354534121,1740558724546,-7891.32,0.00042455,2]
[354534122,1740558724556,-500.0,0.00042455,2]
[354534123,1740558724566,-4684.26,0.00042455,2]
[354534124,1740558724575,-871.57,0.00042455,2]
[354534125,1740558724584,-330.33222476,0.00042455,2]
[354534126,1740558724594,-978.51,0.00042455,2]
[354534127,1740558724603,-636.88,0.00042455,2]
[354534128,1740558724613,-680.1,0.00042455,2]
[354534129,1740558724623,-500.0,0.00042455,2]
[354534130,1740558724633,-500.0,0.00042455,2]
[354534131,1740558724644,-775.53,0.00042455,2]
[354534132,1740558724654,-500.0,0.00042455,2]
[354534133,1740558724664,-500.0,0.00042455,2]
[354534134,1740558724675,-604.16,0.00042455,2]
[354534135,1740558724687,-500.0,0.00042455,2]
[354534136,1740558724696,-542.14,0.00042455,2]
[354534137,1740558724706,-500.0,0.00042455,2]
[354534138,1740558724716,-500.0,0.00042464,2]
[354534139,1740558724725,-554.44,0.00042464,2]
[354534140,1740558724734,-500.0,0.00042464,60]
[354534141,1740558724744,-717.11,0.00042464,2]
[354534142,1740558724753,-500.0,0.00042464,2]
[354534143,1740558724762,-500.0,0.00042464,2]
[354534144,1740558724772,-300.0,0.00042464,120]
[354534145,1740558724782,-227.84843417,0.00042464,2]
[354534146,1740558724792,-639.26,0.00042464,2]
[354534147,1740558724801,-500.0,0.00042464,2]
[354534148,1740558724810,-500.0,0.00042464,2]
[354534149,1740558724820,-443.05433287,0.00042464,2]
[354534150,1740558724829,-500.0,0.00042464,2]
[354534151,1740558724838,-586.05,0.00042464,2]
[354534152,1740558724848,-500.0,0.00042464,2]
[354534153,1740558724857,-561.33,0.00042464,2]
[354534154,1740558724867,-500.0,0.00042464,2]
[354534155,1740558724877,-565.23,0.00042464,2]
[354534156,1740558724886,-528.37,0.00042464,2]
[354534157,1740558724896,-613.55,0.00042464,2]
[354534158,1740558724905,-648.85,0.00042464,2]
[354534159,1740558724914,-500.0,0.00042464,2]
[354534160,1740558724926,-500.0,0.00042464,2]
[354534161,1740558724935,-569.12,0.00042464,2]
[354534162,1740558724945,-500.0,0.00042464,2]
[354534163,1740558724954,-500.0,0.00042464,2]
[354534164,1740558724964,-819.68,0.00042464,2]
[354534165,1740558724974,-690.47,0.00042464,2]
[354534166,1740558724984,-564.17,0.00042464,2]
[354534167,1740558724994,-681.33,0.00042464,2]
[354534168,1740558725004,-166.1,0.00042465,2]
[354534169,1740558725014,-1375.0,0.00042465,2]
[354534170,1740558725024,-500.0,0.00042465,2]
[354534171,1740558725034,-500.0,0.00042465,2]
[354534172,1740558725043,-787.39,0.00042465,2]
[354534173,1740558725052,-500.0,0.00042465,2]
[354534174,1740558725063,-572.1232142,0.00042465,2]
[354534175,1740558725072,-683.71,0.00042465,2]
[354534176,1740558725082,-500.0,0.00042465,2]
[354534177,1740558725092,-500.0,0.00042465,2]
[354534178,1740558725101,-569.11,0.00042465,2]
[354534179,1740558725111,-500.0,0.00042465,2]
[354534180,1740558725121,-500.0,0.00042465,2]
[354534181,1740558725130,-500.0,0.00042465,2]
[354534182,1740558725140,-500.0,0.00042465,2]
[354534183,1740558725150,-500.0,0.00042465,2]
[354534184,1740558725159,-500.0,0.00042465,2]
[354534185,1740558725176,-512.7,0.00042465,2]
[354534186,1740558725186,-500.0,0.00042465,2]
[354534187,1740558725196,-562.39,0.00042465,2]
[354534188,1740558725208,-578.94,0.00042465,2]
[354534189,1740558725218,-859.52,0.00042465,2]
[354534190,1740558725228,-500.0,0.00042465,2]
[354534191,1740558725241,-703.42,0.00042465,2]
[354534192,1740558725250,-500.0,0.00042465,2]
[354534193,1740558725259,-500.0,0.00042465,2]
[354534194,1740558725269,-500.0,0.00042465,2]
[354534195,1740558725278,-500.0,0.00042465,2]
[354534196,1740558725288,-500.0,0.00042465,2]
[354534197,1740558725301,-500.0,0.00042465,2]